Cogmind - Beta 11 @@@ ROGUE MODE // 2022.04.18 @ 10:54:47 Player: PhenomPhear Result: Destroyed by G-47 Trooper with Particle Gun Performance ------------- Evolutions (3) 1500 Regions Visited (14) 2800 Robots Destroyed (211) 1055 Value Destroyed (7549) 7549 Prototype IDs (14) 280 Alien Tech Used (0) 0 Bonus (3324) 3324 TOTAL SCORE: 16508 Bonus ------- High Alert Combat Kills 904 Follower Combat Kills 120 Entered Garrisons 800 Used RIF Installer 1500 Cogmind --------- Core Integrity 0/700 Matter 95/300 Energy 100/100 System Corruption 11% Temperature Cool (6) Movement Core (50) Location -7/Garrison Parts ------- > --- POWER (1) -------- (None) > --- PROPULSION (4) --- (None) > --- UTILITY (5) ------ (None) > --- WEAPON (3) ------- (None) > --- INVENTORY (5) ---- Nuclear Core Improved Signal Interpreter Relay Coupler [Sentry] (22) Plasma Cannon Gauss Rifle Peak State ------------ > --- POWER ------------ Improved Deuterium Engine > --- PROPULSION ------- Improved Heavy Treads Improved Heavy Treads > --- UTILITY ---------- Advanced Heat Sink Huge Storage Unit Medium Reactive Plating Relay Coupler [Grunt] Relay Coupler [Sentry] > --- WEAPON ----------- Gauss Rifle Gauss Rifle Gauss Rifle > --- INVENTORY -------- Improved Deuterium Engine Wheel Armored Wheel High-capacity Matter Pod Improved Signal Interpreter Layered Light Armor Plating Medium Reactive Plating Relay Coupler [NC] Relay Coupler [Swarmer] Relay Coupler [Sentry] Corruption Screen Pulse Rifle Pulse Rifle Pulse Rifle Pulse Rifle Pulse Rifle Plasma Cannon Plasma Cannon Plasma Cannon Plasma Cannon Improved Grenade Launcher Heavy Rocket Launcher Improved Datajack Katana Axe [Rating: 68] Favorites ----------- Power Improved Deuterium Engine Engine Improved Deuterium Engine Power Core Light Nuclear Core Propulsion Improved Treads Treads Improved Treads Leg Carbon-fiber Leg Wheel Armored Wheel Flight Unit Improved Flight Unit Utility Huge Storage Unit Device Cooling System Storage Huge Storage Unit Processor Transport Network Coupler Hackware Relay Coupler [Sentry] Protection Medium Reactive Plating Weapon Improved Assault Rifle Energy Gun Pulse Rifle Energy Cannon Plasma Cannon Ballistic Gun Improved Assault Rifle Ballistic Cannon Advanced Assault Cannon Launcher Improved Grenade Launcher Slashing Weapon Katana Special Melee Weapon Improved Datajack Build | -11 -10 -10 -9 -9 -9 -8 -8 -8 -8 -8 -7 -7 -7 -7 ------- Run | Scr Mat Min Mat Min Exi Min Mat Gar Mat Gar Fac Gar Fac Gar Slots Evolved 6 | . . . 2 . . . 2 . . . 2 . . . Power . | . . . . . . . . . . . . . . . Propulsion 2 | . . . . . . . 2 . . . . . . . Utility 3 | . . . 1 . . . . . . . 2 . . . Weapon 1 | . . . 1 . . . . . . . . . . . Parts Attached 185 | 6 6 1 42 3 . 4 3 14 36 6 18 14 25 7 Power 13 | 1 . . 2 . . 1 . 1 3 . 1 1 2 1 Engine 11 | 1 . . 2 . . 1 . 1 2 . 1 1 2 . Core 2 | . . . . . . . . . 1 . . . . 1 Reactor . | . . . . . . . . . . . . . . . Propulsion 32 | 2 . . 9 . . . 3 1 8 1 2 . 6 . Treads 18 | 2 . . 4 . . . 3 1 4 . 2 . 2 . Leg 2 | . . . . . . . . . 1 . . . 1 . Wheel 10 | . . . 3 . . . . . 3 1 . . 3 . Hover . | . . . . . . . . . . . . . . . Flight 2 | . . . 2 . . . . . . . . . . . Utility 44 | 1 . . 7 . . 1 . 5 3 1 9 5 9 3 Device 16 | . . . 4 . . . . 1 1 . 5 2 3 . Storage 3 | 1 . . 1 . . . . . 1 . . . . . Processor 2 | . . . . . . . . . . . 1 . 1 . Hackware 5 | . . . . . . . . 1 . . 2 . 2 . Protection 18 | . . . 2 . . 1 . 3 1 1 1 3 3 3 Artifact . | . . . . . . . . . . . . . . . Weapon 96 | 2 6 1 24 3 . 2 . 7 22 4 6 8 8 3 Energy Gun 26 | . . . 12 1 . . . 3 6 . . 3 1 . Energy Cannon 12 | . . . . . . . . 3 3 . 2 1 3 . Ballistic Gun 33 | 2 3 1 9 1 . 1 . . 9 3 2 2 . . Ballistic Cannon 1 | . . . . . . . . . . . . . . 1 Launcher 17 | . 3 . 3 1 . 1 . 1 2 1 . 2 1 2 Special Weapon . | . . . . . . . . . . . . . . . Impact Weapon . | . . . . . . . . . . . . . . . Slashing Weapon 4 | . . . . . . . . . 1 . 1 . 2 . Piercing Weapon . | . . . . . . . . . . . . . . . Special Melee Weapon 3 | . . . . . . . . . 1 . 1 . 1 . Unidentified Prototypes 8 | . . . 5 . . . . . 2 . . . 1 . Parts Lost 46 | . . . 5 . . . . 5 10 1 . 8 8 9 Power 7 | . . . 1 . . . . 1 2 . . 1 1 1 Propulsion 14 | . . . 1 . . . . 1 5 1 . . 5 1 Utility 14 | . . . 2 . . . . 2 2 . . 4 . 4 Weapon 11 | . . . 1 . . . . 1 1 . . 3 2 3 Highest Loss Streak 9 | . . . 3 . . . . 2 4 1 . 6 4 9 To Critical Strikes . | . . . . . . . . . . . . . . . Average Slot Usage (%) 93 | . 85 85 97 100 100 100 100 98 92 93 86 83 92 84 Engine 8 | . 14 14 10 11 11 11 9 9 3 9 7 6 6 4 Treads 15 | . 28 28 13 11 11 11 36 34 14 9 13 15 11 5 Leg 1 | . . . . . . . . . 6 9 1 . 2 7 Wheel 7 | . . . 8 11 11 11 . . 10 11 2 . 9 5 Device 10 | . . . 10 22 22 16 9 8 6 9 5 6 10 6 Storage 9 | . 14 14 11 11 11 11 9 9 10 9 7 7 7 7 Hackware 3 | . . . . . . . . . . . 15 8 9 6 Protection 7 | . . . 9 . . 5 9 8 8 9 7 12 8 14 Energy Gun 5 | . . . 12 . . . . 6 10 . . 10 6 . Energy Cannon 3 | . . . . . . . . 12 1 . 3 3 10 12 Ballistic Gun 17 | . 21 26 20 32 33 32 27 7 14 26 17 2 . . Naked Turns 9 | . . . . . . . . . . . . . . 9 Heaviest Build 132 | 13 15 15 103 98 98 103 103 132 132 123 129 129 117 117 Greatest Support 150 | 40 40 40 40 12 12 12 92 92 69 22 75 150 150 10 Greatest Overweight (x) 11 | 1 . . 10 8 8 8 1 1 10 10 5 1 11 11 Average Overweight (x) 4 | . . . 3 8 8 8 1 1 4 8 1 . 4 8 Largest Inventory Capacity 25 | 8 8 8 25 25 25 25 25 25 25 25 25 25 25 25 Average Capacity 23 | 7 8 8 22 25 25 25 25 25 25 25 25 25 25 23 Most Carried 25 | 6 7 7 25 25 25 25 24 25 25 25 25 24 25 23 Average Carried 21 | 3 6 7 15 25 25 24 22 23 24 24 24 21 22 20 Final Capacity 25 | 8 8 8 25 25 25 25 25 25 25 25 25 25 25 5 Final Carried 25 | 6 7 7 25 25 25 25 23 23 25 25 24 22 23 5 Class Distribution -------------------- 34% | Tank 18% | Gunner 12% | Bothacker-Tank 12% | Bothacker-Mutant 10% | Scavenger-Tank 6% | Mutant 5% | Scavenger-Mutant Dominant Class ---------------- Mutant | -10/Materials Mutant | -10/Mines Tank | -9/Materials Gunner | -9/Mines Gunner | -9/Exiles Gunner | -8/Mines Tank | -8/Materials Tank | -8/Garrison Scavenger-Tank | -8/Materials Scavenger-Tank | -8/Garrison Bothacker-Tank | -7/Factory Bothacker-Mutant | -7/Garrison Scavenger-Mutant | -7/Factory Scavenger-Mutant | -7/Garrison Resources | -11 -10 -10 -9 -9 -9 -8 -8 -8 -8 -8 -7 -7 -7 -7 ----------- Run | Scr Mat Min Mat Min Exi Min Mat Gar Mat Gar Fac Gar Fac Gar Matter Collected 4681 | 225 129 18 837 132 36 257 105 258 876 597 425 434 352 . Remotely . | . . . . . . . . . . . . . . . Salvage Created 7553 | . 178 32 1369 333 . 475 137 926 1287 676 496 692 722 230 Parts 398 | . 13 1 87 28 . 22 8 44 67 31 27 29 25 16 Haulers Intercepted 12 | . 1 . 4 . . . . . 4 . 2 . 1 . Recyclers Shooed 3 | . . . 2 . . . . . 1 . . . . . Parts Field Recycled . | . . . . . . . . . . . . . . . Retrieved Matter . | . . . . . . . . . . . . . . . Parts Self-Destructed . | . . . . . . . . . . . . . . . Prevented . | . . . . . . . . . . . . . . . Kills | -11 -10 -10 -9 -9 -9 -8 -8 -8 -8 -8 -7 -7 -7 -7 ------- Run | Scr Mat Min Mat Min Exi Min Mat Gar Mat Gar Fac Gar Fac Gar Combat Hostiles Destroyed 172 | . 8 2 27 11 . 11 2 19 22 15 7 22 14 12 Melee 2 | . . . . . . . . 1 . . . . 1 . Guns 93 | . . . 17 8 . 7 2 13 19 10 6 7 4 . Cannons 18 | . . . . . . . . 4 1 . 1 3 7 2 AOE 57 | . 8 2 10 3 . 4 . . 2 5 . 12 1 10 Classes Destroyed 16 | . 5 . 4 2 . . . 1 1 . 2 1 . . Worker 8 | . . . 2 1 . . . . 3 . 1 . 1 . Builder 5 | . 1 . 1 . . . . . 3 . . . . . Tunneler 3 | . . . . 1 . 1 . . . . 1 . . . Hauler 12 | . 1 . 4 . . . . . 4 . 2 . 1 . Recycler 3 | . 1 . 2 . . . . . . . . . . . Mechanic 1 | . . . . . . . . . . . 1 . . . Operator 4 | . . . 2 . . . . . 1 . . . 1 . Watcher 3 | . . . 2 . . . 1 . . . . . . . Swarmer 48 | . 6 . 6 5 . 8 . 3 . 6 2 4 . 8 Cutter 2 | . . . . . . . . . . . . 2 . . Grunt 77 | . 2 2 17 4 . 3 . 6 15 6 2 10 7 3 Brawler 10 | . . . . 2 . . . 1 . 2 1 2 1 1 Duelist 1 | . . . . . . . . . 1 . . . . . Sentry 24 | . . . 4 . . . 2 8 4 . . 3 3 . Hunter 6 | . . . . . . . . 1 2 1 . 1 1 . Programmer 4 | . . . . . . . . . . . 2 . 2 . Best Kill Streak 12 | . 7 2 8 4 . 5 3 4 11 6 6 10 3 12 Combat Bots Only 12 | . 5 2 6 3 . 4 2 4 6 6 5 10 3 12 Max Kills in Single Turn 5 | . 2 1 5 2 . 4 1 2 2 3 1 5 2 2 Gunslinging 1 | . . . . 1 . 1 . . . 1 . . . . Exploded 5 | . 2 1 3 1 . 4 . . 1 3 . 5 1 2 Melee 1 | . . . . . . . . 1 . . . . 1 . Uniques/NPCs Destroyed . | . . . . . . . . . . . . . . . Combat | -11 -10 -10 -9 -9 -9 -8 -8 -8 -8 -8 -7 -7 -7 -7 -------- Run | Scr Mat Min Mat Min Exi Min Mat Gar Mat Gar Fac Gar Fac Gar Damage Taken 9884 | . 118 139 904 189 . 348 63 965 1239 538 671 2095 1441 1174 Core 1166 | . 9 50 152 33 . 6 . 76 87 45 165 170 127 246 Absorbed by Shields 67 | . . . . . . . . 30 . . . . . 37 Regen/Repaired (Parts) 133 | . . . . . . . . . 133 . . . . . Core Remaining (%) 72 | 100 . 76 . . . 52 . . . 62 . . . . Volleys Fired 407 | . 9 5 80 15 . 22 6 36 67 46 28 43 33 17 Largest 3 | . 2 1 3 3 . 3 3 3 3 3 3 3 3 2 Hottest 240 | . 40 30 189 69 . 69 69 240 189 119 188 189 189 138 Shots Fired 1025 | . 10 5 221 39 . 62 18 105 170 126 82 93 71 23 Gun 845 | . 2 . 216 36 . 60 18 74 148 122 78 61 30 . Cannon 124 | . . . . . . . . 30 12 . 4 22 40 16 Launcher 56 | . 8 5 5 3 . 2 . 1 10 4 . 10 1 7 Special . | . . . . . . . . . . . . . . . Kinetic 630 | . 2 . 132 36 . 60 18 41 112 117 78 25 . 9 Thermal 296 | . . . 74 . . . . 30 48 5 4 58 70 7 Explosive 56 | . 8 5 5 3 . 2 . 1 10 4 . 10 1 7 Electromagnetic 43 | . . . 10 . . . . 33 . . . . . . Robot Hit Streak 28 | . 2 7 12 10 . 18 6 13 8 28 6 18 12 3 Robot Miss Streak 10 | . 2 . 4 3 . 2 1 10 2 3 5 4 4 3 Penetration Max 1 | . . . . . . . . . 1 1 1 1 . . Secondary Targets 17 | . . . 2 2 . 2 . 3 2 4 . 1 1 . Max Gunslinging Chain 1 | . . . 1 1 . 1 . 1 1 1 . 1 1 . Shots Hit Robots 671 | . 3 5 140 18 . 42 13 70 107 99 41 62 60 11 Core Hits 360 | . 17 4 59 15 . 19 6 32 55 49 17 42 25 20 Critical Kills 2 | . . . . . . . . 1 . 1 . . . . Critical Parts Destroyed 11 | . . . . 1 . . . 1 4 4 1 . . . Critical Strikes 26 | . . . 3 1 . . . 2 5 6 1 4 4 . Burn 10 | . . . 3 . . . . . 1 1 . 4 1 . Meltdown 1 | . . . . . . . . 1 . . . . . . Destroy 12 | . . . . 1 . . . 1 4 5 1 . . . Sever 3 | . . . . . . . . . . . . . 3 . Melee Attacks 24 | . . . . . . . . . 1 . 3 . 20 . Impact . | . . . . . . . . . . . . . . . Slashing 16 | . . . . . . . . . 1 . 3 . 12 . Piercing . | . . . . . . . . . . . . . . . Sneak Attacks 7 | . . . . . . . . . . . 3 . 4 . Combat Hostiles . | . . . . . . . . . . . . . . . Follow-up Attacks . | . . . . . . . . . . . . . . . Damage Inflicted 18595 | . 578 310 2807 633 . 775 186 1251 3098 2419 1192 2514 1628 1204 Guns 9052 | . . . 1843 282 . 620 186 717 1962 1387 902 768 385 . Cannons 2252 | . . . . . . . . 531 233 . 91 331 805 261 Explosions 6858 | . 578 310 958 351 . 155 . . 903 1032 . 1402 226 943 Melee 397 | . . . . . . . . . . . 185 . 212 . Ramming 36 | . . . 6 . . . . 3 . . 14 13 . . Kinetic 6673 | . . . 1025 282 . 620 186 395 1517 1319 902 298 . 129 Thermal 4646 | . . . 788 141 . . . 531 678 68 91 801 1416 132 Explosive 6406 | . 578 310 873 210 . 155 . . 903 1032 . 1402 . 943 Electromagnetic 437 | . . . 115 . . . . 322 . . . . . . Impact . | . . . . . . . . . . . . . . . Slashing 397 | . . . . . . . . . . . 185 . 212 . Piercing . | . . . . . . . . . . . . . . . Highest Corruption 11 | . . . . . . . . . 3 3 4 7 11 11 Average Corruption 5 | . . . . . . . . . 3 3 2 6 7 11 Corruption Purged 5 | . . . . . . . . . . . 4 1 . . Corruption Blocked . | . . . . . . . . . . . . . . . Effects 119 | . . . . . . . . . 11 19 6 17 60 6 Message Errors 25 | . . . . . . . . . 4 3 2 4 11 1 Matter Fused 32 | . . . . . . . . . 2 5 1 3 18 3 Heat Flow Errors 13 | . . . . . . . . . 2 1 . 3 7 . Energy Discharges 17 | . . . . . . . . . . 4 . 3 9 1 Parts Rejected 3 | . . . . . . . . . 1 . . . 1 1 Data Loss (minor) 12 | . . . . . . . . . 1 2 . 1 8 . Data Loss (major) 9 | . . . . . . . . . . 2 1 1 5 . Misfires 3 | . . . . . . . . . . 1 1 1 . . Weapon Failures 5 | . . . . . . . . . 1 1 1 1 1 . Overload Shots 14 | . . . . . . . . . . . . . 12 2 Effects 1 | . . . . . . . . . . . . . 1 . Heat Surge 1 | . . . . . . . . . . . . . 1 . Overflow Damage 265 | . 14 10 27 . . 20 . 27 43 13 . 72 39 . Projectiles 28 | . . . . . . . . 27 1 . . . . . Explosions 237 | . 14 10 27 . . 20 . . 42 13 . 72 39 . Melee . | . . . . . . . . . . . . . . . Knockbacks 2 | . . . . . . . . . . . . . . 2 Impact . | . . . . . . . . . . . . . . . Kinetic 2 | . . . . . . . . . . . . . . 2 Secondary . | . . . . . . . . . . . . . . . Self-Inflicted Damage 474 | . . 15 48 . . . . . . . 159 135 . 117 Shots 10 | . . 1 1 . . . . . . . 2 4 . 2 Rammed 5 | . . . 1 . . . . . . . 2 2 . . Targets Rammed 6 | . . . 1 . . . . 1 . . 2 2 . . Kicked . | . . . . . . . . . . . . . . . Crushed 1 | . . . . . . . . 1 . . . . . . Highest Temperature 445 | . 1 15 315 . . . . 360 264 263 158 349 445 206 Average Temperature 89 | . 1 9 70 . . . . 115 77 85 61 117 102 77 Received Heat Transfer 3186 | . 6 69 363 60 . 135 18 261 684 279 90 669 414 138 Effects 3 | . . . . . . . . . . . . . 3 . Interference 3 | . . . . . . . . . . . . . 3 . Siege Activations . | . . . . . . . . . . . . . . . Robots Corrupted . | . . . . . . . . . . . . . . . Combat Hostiles . | . . . . . . . . . . . . . . . Parts Fried 4 | . . . 2 . . . . 2 . . . . . . Impact Corruptions . | . . . . . . . . . . . . . . . Robots Melted 2 | . . . . . . . . 1 . . . . 1 . Combat Hostiles 2 | . . . . . . . . 1 . . . . 1 . Parts Melted 20 | . . . 1 . . . . 4 1 . 1 6 7 . Heat Transferred 9274 | . . . 1950 150 . . . 1050 1486 222 150 1982 2123 161 Parts Sabotaged . | . . . . . . . . . . . . . . . Parts Stolen . | . . . . . . . . . . . . . . . Parts Stripped . | . . . . . . . . . . . . . . . Power Chain Reactions 1 | . . . 1 . . . . . . . . . . . Missiles Intercepted . | . . . . . . . . . . . . . . . Alert | -11 -10 -10 -9 -9 -9 -8 -8 -8 -8 -8 -7 -7 -7 -7 ------- Run | Scr Mat Min Mat Min Exi Min Mat Gar Mat Gar Fac Gar Fac Gar Peak Influence 806 | . 290 192 623 475 . 277 190 788 757 806 512 759 559 464 Initial 422 | . . 112 74 242 . . 107 123 384 337 422 252 398 245 Average 358 | . 152 183 195 400 . 54 122 505 490 693 372 580 354 309 Maximum Alert Level 3 | . 1 . 2 2 . 1 . 3 3 3 2 3 2 2 Low Security (%) 26 | 100 59 100 60 . . 97 100 8 . . . . 2 . Level 1 31 | . 40 . 22 39 . 2 . 24 25 9 56 15 72 69 Level 2 33 | . . . 17 60 . . . 44 71 15 43 76 25 30 Level 3 8 | . . . . . . . . 22 3 75 . 7 . . Level 4 . | . . . . . . . . . . . . . . . Level 5 . | . . . . . . . . . . . . . . . High Security . | . . . . . . . . . . . . . . . Max Security . | . . . . . . . . . . . . . . . Squads Dispatched 18 | . 1 . 4 . . . 1 . 3 . 2 . 7 . Investigation 2 | . 1 . 1 . . . . . . . . . . . Extermination 4 | . . . . . . . . . . . 2 . 2 . Reinforcement 11 | . . . 3 . . . . . 3 . . . 5 . Assault . | . . . . . . . . . . . . . . . Garrison 1 | . . . . . . . 1 . . . . . . . Intercept . | . . . . . . . . . . . . . . . Searches Triggered . | . . . . . . . . . . . . . . . Construction Impeded 1 | . . . . . . . . . 1 . . . . . Haulers Reinforced . | . . . . . . . . . . . . . . . Active Scanning Responses . | . . . . . . . . . . . . . . . Cargo Convoy Interrupts . | . . . . . . . . . . . . . . . Alert ID Control Effect 3 | . . . . . . . . . . . . . 3 . Stealth | -11 -10 -10 -9 -9 -9 -8 -8 -8 -8 -8 -7 -7 -7 -7 --------- Run | Scr Mat Min Mat Min Exi Min Mat Gar Mat Gar Fac Gar Fac Gar Distress Signals 7 | . 1 . 1 . . . 1 . 3 . 1 . . . Communications Jammed . | . . . . . . . . . . . . . . . Distress Signals . | . . . . . . . . . . . . . . . Times Spotted 243 | . 9 2 38 12 . 11 4 20 37 15 16 25 34 20 Peak Tracking Total 11 | . 4 2 6 3 . 4 2 4 6 5 8 11 4 8 Tactical Retreats 7 | . . . . 1 . . . . 2 . 1 1 2 . Traps | -11 -10 -10 -9 -9 -9 -8 -8 -8 -8 -8 -7 -7 -7 -7 ------- Run | Scr Mat Min Mat Min Exi Min Mat Gar Mat Gar Fac Gar Fac Gar Traps Triggered 19 | . . . . . . . . 12 . 1 . . 3 3 Indirectly . | . . . . . . . . . . . . . . . Trap Hack Attempts . | . . . . . . . . . . . . . . . Triggered . | . . . . . . . . . . . . . . . Disarmed . | . . . . . . . . . . . . . . . Reprogrammed . | . . . . . . . . . . . . . . . Reused . | . . . . . . . . . . . . . . . Traps Extracted . | . . . . . . . . . . . . . . . Installed . | . . . . . . . . . . . . . . . Triggered . | . . . . . . . . . . . . . . . Machines | -11 -10 -10 -9 -9 -9 -8 -8 -8 -8 -8 -7 -7 -7 -7 ---------- Run | Scr Mat Min Mat Min Exi Min Mat Gar Mat Gar Fac Gar Fac Gar Machines Disabled 27 | . 1 . 2 1 . 5 . 1 1 3 5 1 7 . Max in Single Turn 6 | . 1 . 1 1 . 2 . 1 1 1 3 1 6 . Garrison Relay 4 | . . . . . . . . 1 . 2 . 1 . . Machines Sabotaged . | . . . . . . . . . . . . . . . Garrisons Compromised . | . . . . . . . . . . . . . . . Overloaded Fab Kills . | . . . . . . . . . . . . . . . Hacking | -11 -10 -10 -9 -9 -9 -8 -8 -8 -8 -8 -7 -7 -7 -7 --------- Run | Scr Mat Min Mat Min Exi Min Mat Gar Mat Gar Fac Gar Fac Gar Machines Accessed 23 | . 1 . 4 . . 1 1 . 7 . 4 . 5 . Terminals 15 | . 1 . 4 . . 1 . . 5 . 2 . 2 . Fabricators 2 | . . . . . . . . . . . 1 . 1 . Repair Stations 2 | . . . . . . . . . 1 . . . 1 . Recycling Units . | . . . . . . . . . . . . . . . Scanalyzers . | . . . . . . . . . . . . . . . Garrison Access 4 | . . . . . . . 1 . 1 . 1 . 1 . Total Hacks 45 | . 4 . 9 . . 2 3 . 17 . 4 . 6 . Successful 22 | . 1 . 4 . . 1 1 . 9 . 4 . 2 . Failed 23 | . 3 . 5 . . 1 2 . 8 . . . 4 . Catastrophic 3 | . 1 . . . . . . . 1 . . . 1 . Database Lockouts . | . . . . . . . . . . . . . . . Manual 5 | . . . 3 . . . . . 1 . . . 1 . Terminals 33 | . 4 . 9 . . 2 . . 14 . 2 . 2 . Fabricators 2 | . . . . . . . . . . . 1 . 1 . Repair Stations 4 | . . . . . . . . . 2 . . . 2 . Recycling Units . | . . . . . . . . . . . . . . . Scanalyzers . | . . . . . . . . . . . . . . . Garrison Access 6 | . . . . . . . 3 . 1 . 1 . 1 . Terminal Hacks 14 | . 1 . 4 . . 1 . . 6 . 2 . . . Prototype ID Bank 3 | . . . 1 . . . . . 2 . . . . . Open DSF 1 | . . . . . . . . . . . 1 . . . Branch Access Points 3 | . 1 . 1 . . . . . . . 1 . . . Emergency Access Points 1 | . . . . . . . . . 1 . . . . . Terminal Index 1 | . . . . . . . . . 1 . . . . . Alert Level 1 | . . . . . . . . . 1 . . . . . Unreport Threat 1 | . . . . . . . . . 1 . . . . . Zone Layout 3 | . . . 2 . . 1 . . . . . . . . Fabricator Hacks 1 | . . . . . . . . . . . 1 . . . Build 1 | . . . . . . . . . . . 1 . . . Repair Station Hacks 3 | . . . . . . . . . 2 . . . 1 . Scan Component 2 | . . . . . . . . . 1 . . . 1 . Repair 1 | . . . . . . . . . 1 . . . . . Recycling Unit Hacks . | . . . . . . . . . . . . . . . Scanalyzer . | . . . . . . . . . . . . . . . Garrison Access Hacks 4 | . . . . . . . 1 . 1 . 1 . 1 . Unlock Access 4 | . . . . . . . 1 . 1 . 1 . 1 . Unauthorized Hacks . | . . . . . . . . . . . . . . . Terminals . | . . . . . . . . . . . . . . . Fabricators . | . . . . . . . . . . . . . . . Repair Stations . | . . . . . . . . . . . . . . . Recycling Units . | . . . . . . . . . . . . . . . Scanalyzers . | . . . . . . . . . . . . . . . Garrison Access . | . . . . . . . . . . . . . . . Data Cores Recovered . | . . . . . . . . . . . . . . . Used . | . . . . . . . . . . . . . . . Hacking Detections 17 | . 1 . 3 . . 1 1 . 5 . 1 . 5 . Full Trace Events 3 | . 1 . 1 . . . . . 1 . . . . . Feedback Events . | . . . . . . . . . . . . . . . Feedback Blocked . | . . . . . . . . . . . . . . . Robot Schematics Acquired . | . . . . . . . . . . . . . . . Robots Built . | . . . . . . . . . . . . . . . Authchips . | . . . . . . . . . . . . . . . Time . | . . . . . . . . . . . . . . . Total Robot Build Rating . | . . . . . . . . . . . . . . . Part Schematics Acquired . | . . . . . . . . . . . . . . . Parts Built 2 | . . . . . . . . . . . 2 . . . Authchips . | . . . . . . . . . . . . . . . Time 58 | . . . . . . . . . . . 58 . . . Total Part Build Rating 14 | . . . . . . . . . . . 14 . . . Parts Repaired 1 | . . . . . . . . . 1 . . . . . Time 44 | . . . . . . . . . 44 . . . . . Parts Recycled . | . . . . . . . . . . . . . . . Recycled Matter . | . . . . . . . . . . . . . . . Retrieved Matter . | . . . . . . . . . . . . . . . Retrieved Components . | . . . . . . . . . . . . . . . Parts Scanalyzed . | . . . . . . . . . . . . . . . Part Schematics Acquired . | . . . . . . . . . . . . . . . Parts Damaged . | . . . . . . . . . . . . . . . Bothacking | -11 -10 -10 -9 -9 -9 -8 -8 -8 -8 -8 -7 -7 -7 -7 ------------ Run | Scr Mat Min Mat Min Exi Min Mat Gar Mat Gar Fac Gar Fac Gar Used RIF Installer 3 | . . . . . . . . 1 . 1 . 1 . . Command Fork 1 | . . . . . . . . . . 1 . . . . Alert ID Control 1 | . . . . . . . . . . . . 1 . . Robots Hacked 4 | . . . . . . . . . . . . . 4 . Non-combat 1 | . . . . . . . . . . . . . 1 . Combat 3 | . . . . . . . . . . . . . 3 . Robot Hacks Applied 4 | . . . . . . . . . . . . . 4 . find_fabricator 1 | . . . . . . . . . . . . . 1 . formatsys_high 3 | . . . . . . . . . . . . . 3 . Relay Couplers Released 15 | . . . . . . . . 3 . 8 . 4 . . Machine Destruction 15 | . . . . . . . . 3 . 8 . 4 . . Attached 4 | . . . . . . . . . . . 2 . 2 . Fabnet Peak Effective % . | . . . . . . . . . . . . . . . Robots Rewired . | . . . . . . . . . . . . . . . Allies Hacked 1 | . . . . . . . . . . . . . 1 . Hacks Repelled . | . . . . . . . . . . . . . . . Allies | -11 -10 -10 -9 -9 -9 -8 -8 -8 -8 -8 -7 -7 -7 -7 -------- Run | Scr Mat Min Mat Min Exi Min Mat Gar Mat Gar Fac Gar Fac Gar Total Allies 4 | . . . . . . . . . . . . . 4 . Largest Group 3 | . . . . . . . . . . . . . 3 . Highest-Rated Group 48 | . . . . . . . . . . . . . 48 . Highest-Rated Ally 32 | . . . . . . . . . . . . . 32 . Total Orders . | . . . . . . . . . . . . . . . Ally Attacks 24 | . . . . . . . . . . . . . 24 . Total Damage 478 | . . . . . . . . . . . . . 478 . Kills 3 | . . . . . . . . . . . . . 3 . Allies Corrupted . | . . . . . . . . . . . . . . . Allies Melted . | . . . . . . . . . . . . . . . Intel | -11 -10 -10 -9 -9 -9 -8 -8 -8 -8 -8 -7 -7 -7 -7 ------- Run | Scr Mat Min Mat Min Exi Min Mat Gar Mat Gar Fac Gar Fac Gar Robot Analysis Total . | . . . . . . . . . . . . . . . Derelict Logs Recovered 1 | . . . . 1 . . . . . . . . . . Drone Launches . | . . . . . . . . . . . . . . . Drone Recoveries . | . . . . . . . . . . . . . . . Exploration | -11 -10 -10 -9 -9 -9 -8 -8 -8 -8 -8 -7 -7 -7 -7 ------------- Run | Scr Mat Min Mat Min Exi Min Mat Gar Mat Gar Fac Gar Fac Gar Turns Passed 13278 | 117 192 191 2343 580 777 1161 214 1280 1347 925 1395 896 1699 161 Spaces Moved 5574 | 66 103 113 967 251 370 513 79 460 535 361 531 401 781 43 Core 11 | 4 . . . . . . . . . . . . . 7 Treads 2361 | 62 103 113 371 . . . 79 460 153 . 432 401 187 . Legs . | . . . . . . . . . . . . . . . Wheels 3202 | . . . 596 251 370 513 . . 382 361 99 . 594 36 Hover . | . . . . . . . . . . . . . . . Flight . | . . . . . . . . . . . . . . . Fastest Speed 50 | 50 160 160 145 210 210 210 240 240 145 160 160 160 145 50 Average Speed 202 | 154 160 160 201 210 210 210 240 240 188 207 225 185 179 212 Slowest Speed 480 | 160 160 160 320 210 210 210 240 240 480 240 240 240 245 245 Overloaded Moves . | . . . . . . . . . . . . . . . Propulsion Burnouts . | . . . . . . . . . . . . . . . Robots Hopped . | . . . . . . . . . . . . . . . Cave-ins Triggered . | . . . . . . . . . . . . . . . Exploration Rate (%) 45 | 4 34 24 84 44 79 98 8 65 59 47 18 72 26 21 Regions Visited 14 Branch Regions 4 Pre-discovered Areas 1 | . . . . 1 . . . . . . . . . . Known Exits Taken 6 | . 1 . 1 . . . 1 . 1 . 1 . 1 . Unknown Exits Taken 5 | 1 . 1 . 1 1 1 . . . . . . . . Scrap Searched 3 | . . . . 1 . 2 . . . . . . . . Spaces Dug 22 | . 5 . 4 . . . . . 12 . . . 1 . Terrain Destroyed 294 | . 26 17 20 13 . 25 . 12 65 9 10 54 28 15 Melee 1 | . . . . . . . . . 1 . . . . . Projectile 12 | . . . . . . . . . 6 . 1 1 3 1 AOE 280 | . 26 17 20 13 . 25 . 12 58 8 9 53 25 14 Terrain Rammed . | . . . . . . . . . . . . . . . Walls Destroyed . | . . . . . . . . . . . . . . . Machines Disabled . | . . . . . . . . . . . . . . . Actions | -11 -10 -10 -9 -9 -9 -8 -8 -8 -8 -8 -7 -7 -7 -7 --------- Run | Scr Mat Min Mat Min Exi Min Mat Gar Mat Gar Fac Gar Fac Gar Total 6727 | 78 118 118 1193 273 371 551 90 560 733 438 660 469 986 89 Wait 333 | 1 . . 66 5 . 5 . 10 57 12 65 3 109 . Move 5563 | 65 102 112 966 250 369 512 79 459 534 360 531 400 781 43 Hop . | . . . . . . . . . . . . . . . Pick Up 79 | 6 1 . 20 . 1 3 1 11 18 3 2 6 7 . Fast Attach 50 | 6 . . 11 . . 1 . 5 14 . 4 2 7 . Attach 46 | . . . 7 . . . 3 4 5 1 4 7 9 6 Detach 18 | . . . 3 . . . . 4 3 . 4 . 4 . Swap 89 | . 6 1 24 3 . 3 . 5 17 5 10 5 9 1 Drop 64 | . . . 15 . 1 5 1 12 17 3 7 1 2 . Fire 407 | . 9 5 80 15 . 22 6 36 67 46 28 43 33 17 Melee 24 | . . . . . . . . . 1 . 3 . 20 . Ram 1 | . . . 1 . . . . . . . . . . . Kick . | . . . . . . . . . . . . . . . Crush 5 | . . . . . . . . 1 . . 2 2 . . Escape Stasis 43 | . . . . . . . . 13 . 8 . . . 22 Rewire 5 | . . . . . . . . . . . . . 5 . Trap . | . . . . . . . . . . . . . . . Miscellaneous . | . . . . . . . . . . . . . . . Route ------- -11/Scrapyard -10/Materials (discovered 2 exits: *Min x2) -10/Mines -9/Materials (discovered 5 exits: *Mat x3 / *Min x2) -9/Mines (discovered 2 exits: *Mat / [*Exi]) -9/Exiles -8/Mines (discovered 2 exits: *Mat x2) -8/Materials -8/Garrison (discovered 2 exits: *Mat x2) -8/Materials (discovered 2 exits: *Fac / Gar) -8/Garrison (discovered 2 exits: *Fac x2) -7/Factory (discovered 5 exits: *Sto x2 / Low x2 / Gar) -7/Garrison (discovered 2 exits: *Fac x2) -7/Factory (discovered 4 exits: [*Fac x3] / Gar) -7/Garrison History --------- Turn | Location | Event 4 | -11/Scrapyard | Discovered new exit (range 16) 118 | -11/Scrapyard | Entered Materials 277 | -10/Materials | Identified exit to Mines 309 | -10/Materials | Build established: Mutant 310 | -10/Materials | Entered Mines 492 | -10/Mines | Discovered new exit (range 5) 501 | -10/Mines | Entered Materials 501 | -9/Materials | Evolved 2 slots: Utility x1, Weapon x1 793 | -9/Materials | Build established: Tank 973 | -9/Materials | Discovered new exit (range 14) 1613 | -9/Materials | Discovered new exit (range 16) 1782 | -9/Materials | Discovered new exit (range 16) 1849 | -9/Materials | Identified exit to Mines 2186 | -9/Materials | Lost 3 parts (1p1n1u) 2718 | -9/Materials | Discovered new exit (range 10) 2844 | -9/Materials | Entered Mines 2883 | -9/Mines | Build established: Gunner 3165 | -9/Mines | Deemed a non-threat by the Exiles lab entrance 3167 | -9/Mines | Discovered new exit (range 5) 3207 | -9/Mines | Discovered new exit (range 6) 3295 | -9/Mines | Found a hidden stash of uninstalled traps 3309 | -9/Mines | Assembled infested the area 3424 | -9/Mines | Entered Exiles 3477 | -9/Exiles | Met 8R-AWN 3506 | -9/Exiles | Met EX-HEX 3590 | -9/Exiles | Met EX-DEC 3656 | -9/Exiles | Visited The Gauntlet 4176 | -9/Exiles | Discovered new exit (range 14) 4201 | -9/Exiles | Entered Mines 4332 | -8/Mines | Discovered new exit (range 14) 5090 | -8/Mines | Build established: Tank 5345 | -8/Mines | Discovered new exit (range 8) 5362 | -8/Mines | Entered Materials 5362 | -8/Materials | Evolved 2 slots: Propulsion x2 5532 | -8/Materials | Garrison activated, responded to threat 5576 | -8/Materials | Identified exit to Garrison 5576 | -8/Materials | Entered Garrison 5690 | -8/Garrison | Triggered checkpoint 5718 | -8/Garrison | Garrison Relay disabled 6060 | -8/Garrison | Triggered checkpoint 6063 | -8/Garrison | Triggered checkpoint 6424 | -8/Garrison | Discovered new exit (range 14) 6554 | -8/Garrison | Triggered checkpoint 6690 | -8/Garrison | Triggered checkpoint 6801 | -8/Garrison | Discovered new exit (range 10) 6847 | -8/Garrison | Installed Relay Interface Framework 6856 | -8/Garrison | Entered Materials 7384 | -8/Materials | Lost 4 parts (1p1n2u) 7463 | -8/Materials | Lost 3 parts (2n1w) 7788 | -8/Materials | Build established: Scavenger-Tank 7835 | -8/Materials | Repaired Gauss Rifle 7846 | -8/Materials | Discovered new exit (range 16) 8198 | -8/Materials | Identified exit to Garrison 8203 | -8/Materials | Entered Garrison 8332 | -8/Garrison | Triggered checkpoint 8343 | -8/Garrison | Triggered checkpoint 8412 | -8/Garrison | Triggered checkpoint 8614 | -8/Garrison | Discovered new exit (range 9) 8720 | -8/Garrison | Triggered checkpoint 8814 | -8/Garrison | Discovered new exit (range 8) 8852 | -8/Garrison | Expanded RIF knowledge: Command Fork 8932 | -8/Garrison | Triggered checkpoint 8965 | -8/Garrison | Garrison Relay disabled 9128 | -8/Garrison | Entered Factory 9128 | -7/Factory | Evolved 2 slots: Utility x2 9347 | -7/Factory | Fabricated Imp. Heavy Treads (x2) 9456 | -7/Factory | Identified exit to Storage 9456 | -7/Factory | Identified exit to Lower Caves 9697 | -7/Factory | Build established: Bothacker-Tank 10523 | -7/Factory | Identified exit to Garrison 10523 | -7/Factory | Entered Garrison 10592 | -7/Garrison | Triggered checkpoint 10660 | -7/Garrison | Triggered checkpoint 10660 | -7/Garrison | Triggered checkpoint 10695 | -7/Garrison | Destroyed 10 combat bots 10826 | -7/Garrison | Lost 6 parts (1p2u3w) 10900 | -7/Garrison | Triggered checkpoint 10995 | -7/Garrison | Discovered new exit (range 15) 11052 | -7/Garrison | Build established: Bothacker-Mutant 11255 | -7/Garrison | Discovered new exit (range 10) 11287 | -7/Garrison | Expanded RIF knowledge: Alert ID Control 11316 | -7/Garrison | Triggered checkpoint 11372 | -7/Garrison | Garrison Relay disabled 11419 | -7/Garrison | Entered Factory 11463 | -7/Factory | Core integrity fell below 50% 11522 | -7/Factory | Discovered new exit (range 15) 11926 | -7/Factory | Lost 4 parts (1p2n1w) 12358 | -7/Factory | Discovered new exit (range 14) 12743 | -7/Factory | System corruption reached 10% 13012 | -7/Factory | Discovered new exit (range 7) 13101 | -7/Factory | Build established: Scavenger-Mutant 13118 | -7/Factory | Identified exit to Garrison 13118 | -7/Factory | Entered Garrison 13218 | -7/Garrison | Triggered checkpoint 13268 | -7/Garrison | Core integrity fell below 20% 13270 | -7/Garrison | Destroyed 12 combat bots 13270 | -7/Garrison | Released all parts (8) 13279 | -7/Garrison | Destroyed by G-47 Trooper with Particle Gun Last Messages --------------- 13265_ L-41 Fighter knocked back. 13265_ Imp. Light Armor Plating destroyed. 13267_ Critical hit (Burn: +37). 13270_ Released Huge Storage Unit. 13270_ Released Cld. Particle Cannon. 13270_ Released Katana. 13270_ Released Imp. Carbon-fiber Leg. 13270_ Released Imp. Light Armor Plating. 13270_ Released Mic. Nuclear Core. 13270_ Released Imp. Medium Armor Plating. 13270_ Released Adv. Assault Cannon. 13273_ Triggered Stasis Trap. 13273_ A bubble of rippling energy engulfs the area. 13273_ Field strength at 94. 13274_ Field strength at 84. 13275_ Field strength at 78. 13276_ Field strength at 72. 13277_ Field strength at 66. 13278_ Field strength at 55. 13279_ Field strength at 34. Map ----- +----------------------------------------------------+ | ?????????????????????????????????????????????????? | | ???????????????????????????????????????????????### | | ???????????????????????????????????????????????# | | ???????????????????????????????????????????????# | | ???????????????????????????????????????????????# | | ???????????????????????????????????????????????# | | ???????????????????????????????????????????????# | | ???????????????????????????????????????????????# | | ???????????????????????????????????????????????# | | ???????????????????????????????????????????????# | | ???????????????????????????????????????????????# | | ???????????????????????????????????????????????# | | ????????????????????????????????################ | | ????????????????????????????????# | | ????????????????????????????????# ^ | | ????????????????????????????????# ########### ### | | ????????????????????????????????# #?????????# #?? | | ????????????????????????????????# #?????????# #?? | | ????????????????????????????????# #?????????# #?? | | ????????????????????????????????# #?????????# #?? | | ??????????????????????????####### #?????????# #?? | | ??????????????????????????#% ## ###???????# #?? | | ?????????????????????######= =!#! #???????? ??? | | ???????????# ######## g*[[/] ##????????#??? | | ???????????# l g]!=!!] #???????????? | | ???????????# @l !!][= ?????? | | ??????????????######## g#l s /!#! #######?????? | | ?????????????????????# ## % # %[##???????????? | | ???????????????????? ? =%=#??????????? | | ???????????????????# x [%#??????????? | | ???????????????????# %#??????????? | | ???????????????????# %% [#??????????? | | ???????????????????### ## = # ###??????????? | | ?????????????????????# # %= ## #????????????? | | ????????????????????? ???????????? | | ???????????????????? ???????????? | | ?????????????????????? % ##???????????? | | ???????????????????????? ## %## ##????????????? | | ??????????????????????????? #? #?????????????? | | ???????????????????????????####??????????????????? | | ?????????????????????????????????????????????????? | | ?????????????????????????????????????????????????? | | ?????????????????????????????????????????????????? | | ?????????????????????????????????????????????????? | | ?????????????????????????????????????????????????? | | ?????????????????????????????????????????????????? | | ?????????????????????????????????????????????????? | | ?????????????????????????????????????????????????? | | ?????????????????????????????????????????????????? | | ?????????????????????????????????????????????????? | +----------------------------------------------------+ Best States ------------- Heat Dissipation 72 Coolant Potential 65 Energy Generation 18 Energy Capacity 290 Matter Stores 500 Matter Capacity 500 Sight Range 16 Terrain Scan Density 10 Armor Coverage 450 Resistance: KI 30 Evasion (%) 40 Recoil Reduction 4 Relay Coupler Types 2 Relay Coupler Value 58 Item Schematics ----------------- None Robot Schematics ------------------ None Fabricated ------------ Imp. Heavy Treads | x2 | -7/Factory | Preloaded Alien Tech Used ----------------- None Achievements -------------- None Challenges ------------ None Game ------ Seed WeldingAbsorptionShifter Manual? 0 Play Time 01:29:21 Cumulative 1124.0 hours Start 2022.03.20 @ 18:37:32 End 2022.04.18 @ 10:54:47 Sessions 5 Manual Loads 0 Difficulty Rogue Special Mode None Game No. 725 Rogue 711 Adventurer 5 Explorer 9 Win Type - Total 19 Types 10/1/4/4/0/0/0/0/0 Lore% 86 Gallery% 88 Achievement% 81 Wizard Run 0 Options --------- ASCII 0 Keyboard 0 Movement Mouse Keybinds 0 Fullscreen 1 Font 24/Crisp Map View 76x50 Tactical HUD 1 Map Filters NONE Filters NONE Steam 1 RUN: 2f62a1ce-43ca-4224-b139-edcc024b94ef